fUSD/lending_fUSD_20250620
["ID","MTS","AMOUNT","RATE_DAILY","PERIOD"]
[366714004,1750415665712,-707.03,0.00030147,4]
[366714005,1750415665722,-490.0,0.00030147,4]
[366714006,1750415665732,-2021.51,0.00030147,4]
[366714007,1750415665742,-547.36,0.00030147,4]
[366714008,1750415665752,-1831.85,0.00030147,4]
[366714009,1750415665762,-606.95,0.00030147,4]
[366714010,1750415665771,-1476.65,0.00030147,4]
[366714011,1750415665782,-384.33882536,0.00030147,4]
[366714012,1750415665791,-1005.12,0.00030147,4]
[366714013,1750415665801,-1516.56,0.00030147,4]
[366714014,1750415665812,-600.95,0.00030147,4]
[366714015,1750415665823,-490.0,0.00030147,4]
[366714016,1750415665834,-490.0,0.00030147,4]
[366714017,1750415665847,-490.0,0.00030147,4]
[366714018,1750415665858,-302.3,0.00030147,4]
[366714019,1750415665869,-1853.92,0.00030147,4]
[366714020,1750415665880,-490.0,0.00030147,4]
[366714021,1750415665892,-1207.48,0.00030147,4]
[366714022,1750415665902,-970.42,0.00030147,4]
[366714023,1750415665913,-1085.47,0.00030147,4]
[366714024,1750415665925,-555.86,0.00030147,4]
[366714025,1750415665935,-1321.89,0.00030147,4]
[366714026,1750415665946,-907.27,0.00030147,4]
[366714027,1750415665957,-490.0,0.00030147,4]
[366714028,1750415665967,-490.0,0.00030147,4]
[366714029,1750415665979,-1835.37,0.00030147,4]
[366714030,1750415665990,-490.0,0.00030147,4]
[366714031,1750415665999,-556.59,0.00030147,4]
[366714032,1750415666010,-1052.99,0.00030147,4]
[366714033,1750415666021,-490.0,0.00030147,4]
[366714034,1750415666032,-567.01,0.00030147,4]
[366714035,1750415666042,-492.0,0.00030147,4]
[366714036,1750415666053,-819.36,0.00030147,4]
[366714037,1750415666062,-2175.07,0.00030147,4]
[366714038,1750415666072,-490.0,0.00030147,4]
[366714039,1750415666082,-789.56,0.00030147,4]
[366714040,1750415666092,-1474.82,0.00030147,4]
[366714041,1750415666273,-490.0,0.00030147,4]
[366714042,1750415666285,-1752.57,0.00030147,4]
[366714043,1750415666294,-490.0,0.00030147,4]
[366714044,1750415666304,-490.0,0.00030147,4]
[366714045,1750415666315,-2581.66,0.00030147,4]
[366714046,1750415666324,-490.0,0.00030147,4]
[366714047,1750415666335,-1705.52,0.00030147,4]
[366714048,1750415666347,-1306.7,0.00030147,4]
[366714049,1750415666357,-525.6,0.00030147,4]
[366714050,1750415666368,-737.94,0.00030147,4]
[366714051,1750415666379,-490.0,0.00030147,4]
[366714052,1750415666389,-490.0,0.00030147,4]
[366714053,1750415666399,-616.11,0.00030147,4]
[366714054,1750415666408,-749.2,0.00030147,4]
[366714055,1750415666418,-1450.49,0.00030147,4]
[366714056,1750415666429,-733.41,0.00030147,4]
[366714057,1750415666439,-490.0,0.00030147,4]
[366714058,1750415666450,-2517.34,0.00030147,4]
[366714059,1750415666460,-647.98,0.00030147,4]
[366714060,1750415666469,-1420.61,0.00030147,4]
[366714061,1750415666479,-666.21,0.00030147,4]
[366714062,1750415666489,-490.0,0.00030147,4]
[366714063,1750415666498,-798.3,0.00030147,4]
[366714064,1750415666508,-490.0,0.00030147,4]
[366714065,1750415666518,-490.0,0.00030147,4]
[366714066,1750415666527,-629.3,0.00030147,4]
[366714067,1750415666537,-744.22,0.00030147,4]
[366714068,1750415666547,-490.0,0.00030147,4]
[366714069,1750415666557,-824.71,0.00030147,4]
[366714070,1750415666566,-1579.86,0.00030147,4]
[366714071,1750415666578,-509.05,0.00030147,4]
[366714072,1750415666588,-2238.49,0.00030147,4]
[366714073,1750415666599,-597.0,0.00030147,4]
[366714074,1750415666610,-490.0,0.00030147,4]
[366714075,1750415666620,-933.51,0.00030147,4]
[366714076,1750415666630,-822.58,0.00030147,4]
[366714077,1750415666642,-838.77,0.00030147,4]
[366714078,1750415666652,-504.68,0.00030147,4]
[366714079,1750415666662,-507.81,0.00030147,4]
[366714080,1750415666674,-490.0,0.00030147,4]
[366714081,1750415666684,-572.5,0.00030147,4]
[366714082,1750415666693,-445.28170406,0.00030147,4]
[366714083,1750415666704,-490.0,0.00030147,4]
[366714084,1750415666714,-1129.55,0.00030147,4]
[366714085,1750415666724,-858.91,0.00030147,4]
[366714086,1750415666734,-490.0,0.00030147,4]
[366714087,1750415666745,-800.69,0.00030147,4]
[366714088,1750415666756,-1036.77,0.00030147,4]
[366714089,1750415666766,-490.0,0.00030147,4]
[366714090,1750415666776,-1310.63,0.00030147,4]
[366714091,1750415666786,-313.17467638,0.00030147,4]
[366714092,1750415666796,-867.83,0.00030147,4]
[366714093,1750415666806,-1236.78,0.00030147,4]
[366714094,1750415666817,-545.19,0.00030147,4]
[366714095,1750415666828,-490.0,0.00030147,4]
[366714096,1750415666838,-509.27,0.00030147,4]
[366714097,1750415666847,-1804.01,0.00030147,4]
[366714098,1750415666857,-1718.47,0.00030147,4]
[366714099,1750415666867,-528.49,0.00030147,4]
[366714100,1750415666878,-490.0,0.00030147,4]
[366714101,1750415666888,-808.69,0.00030147,4]
[366714102,1750415666897,-490.0,0.00030147,4]
[366714103,1750415666906,-490.0,0.00030147,4]
[366714104,1750415666916,-726.13,0.00030147,4]
[366714105,1750415666925,-490.0,0.00030148,4]
[366714106,1750415666934,-924.0,0.00030148,4]
[366714107,1750415666944,-490.44,0.00030148,4]
[366714108,1750415666954,-490.0,0.00030148,4]
[366714109,1750415666963,-555.64,0.00030148,4]
[366714110,1750415666973,-490.0,0.00030148,4]
[366714111,1750415666982,-560.67,0.00030148,4]
[366714112,1750415666991,-714.6,0.00030148,4]
[366714113,1750415667001,-490.0,0.00030148,4]
[366714114,1750415667011,-490.0,0.00030148,4]
[366714115,1750415667021,-584.97,0.00030148,4]
[366714116,1750415667031,-490.0,0.00030148,4]
[366714117,1750415667040,-528.72,0.00030148,4]
[366714118,1750415667050,-490.0,0.00030148,4]
[366714119,1750415667060,-167.48084846,0.00030148,4]
[366714120,1750415667069,-490.0,0.00030148,4]
[366714121,1750415667079,-490.0,0.00030148,4]
[366714122,1750415667089,-595.37,0.00030148,4]
[366714123,1750415667098,-500.0,0.0003019,7]
[366714124,1750415667108,-500.0,0.00030237,7]
[366714125,1750415667118,-500.0,0.00030245,7]
[366714126,1750415667128,-562.92,0.000303,2]
[366714127,1750415667138,-1000.0,0.00030301,2]
[366714128,1750415667149,-1000.0,0.00030301,2]
[366714129,1750415667159,-150.0,0.00030359,7]
[366714130,1750415667168,-855.14,0.00030379,4]
[366714131,1750415667178,-941.29,0.00030379,4]
[366714132,1750415667188,-710.39,0.00030389,4]
[366714133,1750415667198,-2657.88,0.00030389,4]
[366714134,1750415667209,-678.91,0.00030389,4]
[366714135,1750415667218,-951.97,0.00030389,4]
[366714136,1750415667228,-982.82,0.00030389,4]
[366714137,1750415667238,-934.95,0.00030389,4]
[366714138,1750415667250,-1196.7,0.00030389,4]
[366714139,1750415667259,-905.13,0.00030389,4]
[366714140,1750415667269,-733.67,0.00030389,4]
[366714141,1750415667279,-623.14,0.00030389,4]
[366714142,1750415667289,-858.58,0.00030389,4]
[366714143,1750415667299,-4996.22,0.00030389,4]
[366714144,1750415667308,-1411.02,0.00030389,4]
[366714145,1750415667318,-566.53,0.00030389,4]
[366714146,1750415667328,-673.04,0.00030389,4]
[366714147,1750415667338,-560.81,0.00030389,4]
[366714148,1750415667347,-5470.75,0.00030389,4]
[366714149,1750415667357,-608.76,0.00030389,4]
[366714150,1750415667367,-2781.24,0.00030389,4]
[366714151,1750415667377,-622.46,0.00030389,4]
[366714152,1750415667386,-2671.47,0.00030389,4]
[366714153,1750415667396,-807.14,0.00030389,4]
[366714154,1750415667406,-490.0,0.00030399,4]
[366714155,1750415667418,-490.0,0.00030399,4]
[366714156,1750415667428,-525.64,0.00030399,4]
[366714157,1750415667438,-490.0,0.00030399,4]
[366714158,1750415667448,-824.86,0.00030399,4]
[366714159,1750415667458,-490.0,0.00030399,4]
[366714160,1750415667468,-1042.35,0.00030399,4]
[366714161,1750415667477,-2063.423116,0.00030399,4]
[366714162,1750415667486,-1129.83,0.00030399,4]
[366714163,1750415667496,-490.0,0.00030399,4]
[366714164,1750415667506,-2980.629608,0.00030399,4]
[366714165,1750415667515,-1443.11,0.00030399,4]
[366714166,1750415667525,-6813.75,0.00030399,4]
[366714167,1750415667536,-977.73,0.00030399,4]
[366714168,1750415667547,-1060.66,0.00030399,4]
[366714169,1750415667557,-1271.04,0.00030399,4]
[366714170,1750415667567,-490.0,0.00030399,4]
[366714171,1750415667577,-1687.17,0.00030399,4]
[366714172,1750415667587,-1425.44,0.00030399,4]
[366714173,1750415667597,-1260.23,0.00030399,4]
[366714174,1750415667607,-535.62,0.00030399,4]
[366714175,1750415667616,-600.47,0.00030399,4]
[366714176,1750415667626,-490.0,0.00030399,4]
[366714177,1750415667637,-7447.5,0.00030399,4]
[366714178,1750415667646,-490.0,0.00030399,4]
[366714179,1750415667656,-490.0,0.00030399,4]
[366714180,1750415667666,-998.98,0.00030399,4]
[366714181,1750415667676,-1377.1,0.00030399,4]
[366714182,1750415667686,-4861.36,0.00030399,4]
[366714183,1750415667695,-1977.29,0.00030399,4]
[366714184,1750415667705,-1276.4,0.00030399,4]
[366714185,1750415667715,-2235.26,0.00030399,4]
[366714186,1750415667725,-2488.9,0.00030399,4]
[366714187,1750415667734,-1190.82,0.00030399,4]
[366714188,1750415667744,-712.91,0.00030399,4]
[366714189,1750415667753,-1879.2,0.00030399,4]
[366714190,1750415667763,-3348.43,0.00030399,4]
[366714191,1750415667772,-2145.92,0.00030399,4]
[366714192,1750415667782,-3119.56,0.00030399,4]
[366714193,1750415667792,-3273.4,0.00030399,4]
[366714194,1750415667801,-11521.38,0.000304,2]
[366714195,1750415667810,-490.0,0.00030401,4]
[366714196,1750415667820,-490.0,0.00030401,4]
[366714197,1750415667829,-490.0,0.00030401,4]
[366714198,1750415667840,-1480.37,0.00030401,4]
[366714199,1750415667849,-1643.1,0.00030401,4]
[366714200,1750415667859,-565.51,0.00030401,4]
[366714201,1750415667869,-492.45,0.00030401,4]
[366714202,1750415667879,-2032.33,0.00030401,4]
[366714203,1750415667889,-880.4,0.00030401,4]
[366714204,1750415667898,-490.0,0.00030401,4]
[366714205,1750415667908,-1088.85,0.00030401,4]
[366714206,1750415667918,-848.08,0.00030401,4]
[366714207,1750415667928,-912.78,0.00030401,4]
[366714208,1750415667938,-1634.09,0.00030401,4]
[366714209,1750415667948,-1838.84,0.00030401,4]
[366714210,1750415667958,-895.29,0.00030401,4]
[366714211,1750415667968,-669.38,0.00030401,4]
[366714212,1750415667978,-818.8,0.00030401,4]
[366714213,1750415667989,-490.0,0.00030401,4]
[366714214,1750415667999,-1627.01,0.00030401,4]
[366714215,1750415668009,-164.26,0.00030401,4]
[366714216,1750415668019,-490.0,0.00030401,4]
[366714217,1750415668029,-1078.58,0.00030401,4]
[366714218,1750415668038,-994.67,0.00030401,4]
[366714219,1750415668048,-771.65,0.00030401,4]
[366714220,1750415668058,-490.0,0.00030401,4]
[366714221,1750415668068,-694.41,0.00030401,4]
[366714222,1750415668078,-490.0,0.00030401,4]
[366714223,1750415668088,-679.99,0.00030401,4]
[366714224,1750415668099,-2362.55,0.00030401,4]
[366714225,1750415668109,-220.98120075,0.00030401,4]
[366714226,1750415668119,-592.8,0.00030401,4]
[366714227,1750415668129,-539.04790625,0.00030401,4]
[366714228,1750415668138,-542.79,0.00030401,4]
[366714229,1750415668148,-1385.22,0.00030401,4]
[366714230,1750415668158,-1591.3,0.00030401,4]
[366714231,1750415668168,-490.0,0.00030401,4]
[366714232,1750415668178,-1073.69,0.00030401,4]
[366714233,1750415668188,-616.36,0.00030401,4]
[366714234,1750415668198,-490.0,0.00030401,4]
[366714235,1750415668208,-583.29,0.00030401,4]
[366714236,1750415668218,-1175.68,0.00030401,4]
[366714237,1750415668227,-1312.24,0.00030401,4]
[366714238,1750415668238,-1363.77,0.00030401,4]
[366714239,1750415668248,-770.8,0.00030401,4]
[366714240,1750415668259,-997.01,0.00030401,4]
[366714241,1750415668269,-989.39,0.00030401,4]
[366714242,1750415668279,-567.86,0.00030401,4]
[366714243,1750415668289,-1096.04,0.00030401,4]
[366714244,1750415668299,-1520.45,0.00030401,4]
[366714245,1750415668309,-805.39,0.00030401,4]
[366714246,1750415668319,-490.0,0.00030401,4]
[366714247,1750415668329,-1428.58,0.00030401,4]
[366714248,1750415668340,-596.59,0.00030401,4]
[366714249,1750415668350,-5382.53,0.00030401,4]
[366714250,1750415668360,-703.96,0.00030401,4]
[366714251,1750415668371,-1669.54,0.00030401,4]
[366714252,1750415668380,-1601.56,0.00030401,4]
[366714253,1750415668390,-2721.61,0.00030401,4]
[366714254,1750415668401,-490.0,0.00030401,4]
[366714255,1750415668410,-741.54,0.00030401,4]
[366714256,1750415668420,-669.76,0.00030401,4]
[366714257,1750415668430,-1225.01,0.00030401,4]
[366714258,1750415668440,-2422.36,0.00030401,4]
[366714259,1750415668450,-1005.68,0.00030401,4]
[366714260,1750415668459,-2138.59,0.00030401,4]
[366714261,1750415668469,-998.16,0.00030401,4]
[366714262,1750415668479,-4396.87,0.00030401,4]
[366714263,1750415668488,-933.76,0.00030401,4]
[366714264,1750415668498,-897.22,0.00030401,4]
[366714265,1750415668508,-1489.74,0.00030401,4]
[366714266,1750415668517,-2632.99,0.00030401,4]
[366714267,1750415668528,-2115.45,0.00030401,4]
[366714268,1750415668538,-1788.12,0.00030401,4]
[366714269,1750415668548,-969.59,0.00030401,4]
[366714270,1750415668558,-587.84,0.00030401,4]
[366714271,1750415668568,-747.47,0.00030401,4]
[366714272,1750415668578,-629.05,0.00030401,4]
[366714273,1750415668588,-1158.39,0.00030401,4]
[366714274,1750415668598,-4900.18,0.00030401,4]
[366714275,1750415668609,-572.98858885,0.00030401,4]
[366714276,1750415668619,-1552.28,0.00030401,4]
[366714277,1750415668629,-540.28,0.00030401,4]
[366714278,1750415668639,-1986.49,0.00030401,4]
[366714279,1750415668649,-2142.56,0.00030401,4]
[366714280,1750415668659,-675.46,0.00030401,4]
[366714281,1750415668669,-2131.24,0.00030401,4]
[366714282,1750415668679,-1335.47,0.00030401,4]
[366714283,1750415668689,-894.67,0.00030401,4]
[366714284,1750415668699,-3901.98,0.00030401,4]
[366714285,1750415668709,-694.78,0.00030401,4]
[366714286,1750415668720,-748.02,0.00030401,4]
[366714287,1750415668730,-2210.45,0.00030401,4]
[366714288,1750415668741,-1823.65,0.00030401,4]
[366714289,1750415668751,-1839.21,0.00030401,4]
[366714290,1750415668761,-951.3,0.00030401,4]
[366714291,1750415668771,-828.87,0.00030401,4]
[366714292,1750415668782,-828.66,0.00030401,4]
[366714293,1750415668792,-2336.71,0.00030401,4]
[366714294,1750415668802,-1193.56,0.00030401,4]
[366714295,1750415668812,-1201.91,0.00030401,4]
[366714296,1750415668822,-1533.32,0.00030401,4]
[366714297,1750415668832,-2402.13,0.00030401,4]
[366714298,1750415668842,-582.83,0.00030411,4]
[366714299,1750415668851,-490.0,0.00030411,4]
[366714300,1750415668861,-536.23,0.00030411,4]
[366714301,1750415668871,-686.65,0.00030411,4]
[366714302,1750415668881,-897.84,0.00030411,4]
[366714303,1750415668891,-793.14,0.00030411,4]
[366714304,1750415668902,-656.19,0.00030411,4]
[366714305,1750415668912,-624.06,0.00030411,4]
[366714306,1750415668922,-490.0,0.00030411,4]
[366714307,1750415668931,-568.83,0.00030411,4]
[366714308,1750415668941,-402.69,0.00030411,4]
[366714309,1750415668951,-697.89,0.00030411,4]
[366714310,1750415668961,-490.0,0.00030411,4]
[366714311,1750415668970,-724.36,0.00030411,4]
[366714312,1750415668979,-282.61754154,0.00030411,4]
[366714313,1750415668990,-1029.22,0.00030411,4]
[366714314,1750415669000,-313.56710646,0.00030411,4]
[366714315,1750415669009,-490.0,0.00030411,4]
[366714316,1750415669019,-490.0,0.00030411,4]
[366714317,1750415669029,-508.29063795,0.00030411,4]
[366714318,1750415669038,-490.0,0.00030411,4]
[366714319,1750415669048,-817.57,0.00030411,4]
[366714320,1750415669058,-490.0,0.00030411,4]
[366714321,1750415669067,-490.0,0.00030411,4]
[366714322,1750415669076,-490.0,0.00030411,4]
[366714323,1750415669086,-860.55,0.00030411,4]
[366714324,1750415669095,-545.70731428,0.00030411,4]
[366714325,1750415669104,-490.0,0.00030411,4]
[366714326,1750415669114,-569.60553461,0.00030411,4]
[366714327,1750415669124,-448.90754408,0.00030411,4]
[366714328,1750415669134,-490.0,0.00030411,4]
[366714329,1750415669144,-490.0,0.00030411,4]
[366714330,1750415669155,-490.0,0.00030411,4]
[366714331,1750415669165,-650.85,0.00030411,4]
[366714332,1750415669175,-490.0,0.00030411,4]
[366714333,1750415669184,-666.55,0.00030411,4]
[366714334,1750415669194,-490.0,0.00030411,4]
[366714335,1750415669204,-490.0,0.00030411,4]
[366714336,1750415669213,-497.02,0.00030411,4]
[366714337,1750415669223,-490.0,0.00030411,4]
[366714338,1750415669232,-561.45,0.00030411,4]
[366714339,1750415669242,-490.0,0.00030411,4]
[366714340,1750415669252,-673.68,0.00030411,4]
[366714341,1750415669262,-798.5,0.00030411,4]
[366714342,1750415669271,-490.0,0.00030411,4]
[366714343,1750415669281,-490.0,0.00030411,4]
[366714344,1750415669290,-490.0,0.00030411,4]
[366714345,1750415669300,-814.97,0.00030411,4]
[366714346,1750415669310,-2237.34,0.00030411,4]
[366714347,1750415669320,-490.0,0.00030411,4]
[366714348,1750415669330,-997.34,0.00030411,4]
[366714349,1750415669339,-792.52,0.00030411,4]
[366714350,1750415669349,-490.0,0.00030411,4]
[366714351,1750415669359,-490.0,0.00030411,4]
[366714352,1750415669369,-749.65,0.00030411,4]
[366714353,1750415669378,-490.0,0.00030411,4]
[366714354,1750415669388,-490.0,0.00030411,4]
[366714355,1750415669397,-870.19,0.00030411,4]
[366714356,1750415669407,-661.75,0.00030411,4]
[366714357,1750415669419,-508.02,0.00030411,4]
[366714358,1750415669431,-490.0,0.00030411,4]
[366714359,1750415669443,-490.0,0.00030411,4]
[366714360,1750415669454,-1294.95,0.00030411,4]
[366714361,1750415669463,-490.0,0.00030411,4]
[366714362,1750415669474,-860.83,0.00030411,4]
[366714363,1750415669484,-1554.68,0.00030411,4]
[366714364,1750415669494,-490.0,0.00030411,4]
[366714365,1750415669503,-686.43,0.00030411,4]
[366714366,1750415669514,-490.0,0.00030411,4]
[366714367,1750415669524,-620.11,0.00030411,4]
[366714368,1750415669534,-591.54,0.00030411,4]
[366714369,1750415669544,-1692.44,0.00030411,4]
[366714370,1750415669554,-757.27,0.00030411,4]
[366714371,1750415669564,-490.0,0.00030411,4]
[366714372,1750415669574,-1478.21,0.00030411,4]
[366714373,1750415669583,-1664.77,0.00030411,4]
[366714374,1750415669593,-490.0,0.00030411,4]
[366714375,1750415669603,-513.53,0.00030411,4]
[366714376,1750415669613,-1643.07,0.00030411,4]
[366714377,1750415669623,-2421.62,0.00030411,4]
[366714378,1750415669633,-490.0,0.00030411,4]
[366714379,1750415669642,-1171.85,0.00030411,4]
[366714380,1750415669651,-1002.75,0.00030411,4]
[366714381,1750415669662,-490.0,0.00030411,4]
[366714382,1750415669672,-481.2090028,0.00030411,4]
[366714383,1750415669682,-490.0,0.00030411,4]
[366714384,1750415669692,-490.0,0.00030411,4]
[366714385,1750415669702,-1052.23,0.00030411,4]
[366714386,1750415669714,-513.94,0.00030411,4]
[366714387,1750415669724,-1203.58,0.00030411,4]
[366714388,1750415669733,-1052.12,0.00030411,4]
[366714389,1750415669744,-1116.54,0.00030411,4]
[366714390,1750415669754,-593.05,0.00030411,4]
[366714391,1750415669764,-713.86,0.00030411,4]
[366714392,1750415669773,-576.72,0.00030411,4]
[366714393,1750415669783,-1207.78,0.00030411,4]
[366714394,1750415669795,-490.0,0.00030411,4]
[366714395,1750415669805,-885.97,0.00030411,4]
[366714396,1750415669816,-1286.94,0.00030411,4]
[366714397,1750415669827,-774.59,0.00030411,4]
[366714398,1750415669837,-663.64,0.00030411,4]
[366714399,1750415669848,-689.38,0.00030411,4]
[366714400,1750415669858,-556.07,0.00030411,4]
[366714401,1750415669868,-929.62,0.00030411,4]
[366714402,1750415669877,-852.86,0.00030411,4]
[366714403,1750415669888,-540.11,0.00030411,4]
[366714404,1750415669898,-549.5,0.00030411,4]
[366714405,1750415669909,-529.21072567,0.00030411,4]
[366714406,1750415669919,-719.33,0.00030411,4]
[366714407,1750415669930,-1178.9,0.00030411,4]
[366714408,1750415669940,-992.43,0.00030411,4]
[366714409,1750415669950,-490.0,0.00030411,4]
[366714410,1750415669960,-2120.13,0.00030411,4]
[366714411,1750415669970,-797.21,0.00030411,4]
[366714412,1750415669981,-2831.45,0.00030411,4]
[366714413,1750415669991,-1657.46,0.00030411,4]
[366714414,1750415670001,-1176.63,0.00030411,4]
[366714415,1750415670012,-640.77,0.00030411,4]
[366714416,1750415670023,-835.13,0.00030411,4]
[366714417,1750415670032,-955.18,0.00030411,4]
[366714418,1750415670043,-759.69,0.00030411,4]
[366714419,1750415670055,-495.19,0.00030411,4]
[366714420,1750415670065,-1620.75,0.00030411,4]
[366714421,1750415670075,-2608.35,0.00030411,4]
[366714422,1750415670085,-1487.07,0.00030411,4]
[366714423,1750415670095,-620.7,0.00030411,4]
[366714424,1750415670105,-2196.02,0.00030411,4]
[366714425,1750415670115,-2048.55,0.00030411,4]
[366714426,1750415670125,-1452.89,0.00030411,4]
[366714427,1750415670135,-676.1,0.00030411,4]
[366714428,1750415670145,-490.0,0.00030411,4]
[366714429,1750415670155,-3078.01,0.00030411,4]
[366714430,1750415670164,-729.0,0.00030411,4]
[366714431,1750415670174,-646.89,0.00030411,4]
[366714432,1750415670184,-490.0,0.00030411,4]
[366714433,1750415670195,-692.86,0.00030411,4]
[366714434,1750415670205,-1111.1,0.00030411,4]
[366714435,1750415670216,-726.03,0.00030411,4]
[366714436,1750415670226,-896.01,0.00030411,4]
[366714437,1750415670236,-522.54,0.00030411,4]
[366714438,1750415670247,-817.65,0.00030411,4]
[366714439,1750415670259,-1212.05,0.00030411,4]
[366714440,1750415670269,-490.0,0.00030411,4]
[366714441,1750415670279,-1510.44,0.00030411,4]
[366714442,1750415670290,-563.12,0.00030411,4]
[366714443,1750415670300,-17404.6,0.00030411,4]
[366714444,1750415670310,-516.42,0.00030411,4]
[366714445,1750415670320,-1966.77,0.00030411,4]
[366714446,1750415670331,-499.64,0.00030411,4]
[366714447,1750415670341,-496.54,0.00030411,4]
[366714448,1750415670351,-682.61,0.00030411,4]
[366714449,1750415670362,-1292.76,0.00030411,4]
[366714450,1750415670371,-532.96,0.00030411,4]
[366714451,1750415670381,-3089.65,0.00030411,4]
[366714452,1750415670391,-1110.49,0.00030411,4]
[366714453,1750415670401,-875.85,0.00030411,4]
[366714454,1750415670412,-808.72,0.00030411,4]
[366714455,1750415670422,-548.1,0.00030411,4]
[366714456,1750415670432,-1116.64,0.00030411,4]
[366714457,1750415670443,-741.55,0.00030411,4]
[366714458,1750415670452,-490.0,0.00030411,4]
[366714459,1750415670463,-900.32,0.00030411,4]
[366714460,1750415670473,-3388.66,0.00030411,4]
[366714461,1750415670483,-1386.85,0.00030411,4]
[366714462,1750415670492,-2512.9,0.00030411,4]
[366714463,1750415670502,-613.06,0.00030411,4]
[366714464,1750415670512,-7527.62,0.00030411,4]
[366714465,1750415670521,-7882.79,0.00030411,4]
[366714466,1750415670531,-741.74,0.00030411,4]
[366714467,1750415670717,-557.61,0.00030411,4]
[366714468,1750415670728,-2444.05,0.00030411,4]
[366714469,1750415670738,-1074.56,0.00030411,4]
[366714470,1750415670748,-716.85,0.00030411,4]
[366714471,1750415670758,-3776.02,0.00030411,4]
[366714472,1750415670768,-600.0,0.00030411,120]
[366714473,1750415670778,-759.29,0.00030411,4]
[366714474,1750415670788,-1533.1,0.00030411,4]
[366714475,1750415670798,-490.0,0.00030411,4]
[366714476,1750415670809,-5317.42,0.00030411,4]
[366714477,1750415670819,-508.46,0.00030411,4]
[366714478,1750415670829,-1702.18,0.00030411,4]
[366714479,1750415670839,-1502.12,0.00030411,4]
[366714480,1750415670848,-9880.35,0.00030411,4]
[366714481,1750415670858,-670.44,0.00030411,4]
[366714482,1750415670868,-2012.16,0.00030411,4]
[366714483,1750415670879,-1936.5,0.00030411,4]
[366714484,1750415670889,-6404.69,0.00030411,4]
[366714485,1750415670899,-2380.6,0.00030411,4]
[366714486,1750415670909,-1141.27,0.00030411,4]
[366714487,1750415670919,-510.99,0.00030411,4]
[366714488,1750415670928,-691.59,0.00030411,4]
[366714489,1750415670939,-490.0,0.00030411,4]
[366714490,1750415670951,-2450.17,0.00030411,4]
[366714491,1750415670961,-1844.2,0.00030411,4]
[366714492,1750415670971,-490.0,0.00030411,4]
[366714493,1750415670981,-622.58,0.00030411,4]
[366714494,1750415670991,-1419.42,0.00030411,4]
[366714495,1750415671001,-1227.01,0.00030411,4]
[366714496,1750415671011,-17540.73,0.00030411,4]
[366714497,1750415671021,-577.20873018,0.00030411,4]
[366714498,1750415671031,-490.0,0.00030411,4]
[366714499,1750415671041,-490.0,0.00030411,4]
[366714500,1750415671051,-490.0,0.00030411,4]
[366714501,1750415671061,-5948.54,0.00030411,4]
[366714502,1750415671071,-957.68,0.00030411,4]
[366714503,1750415671082,-5372.22,0.00030411,4]